bitfinex-derivatives/quotes_ETHF0:USTF0_20250904
["timestamp","ask_amount","ask_price","bid_price","bid_amount"]
[1757012340280,1.06765,4276.2,4276.1,0.5279]
[1757012340475,1.06765,4276.2,4276.1,0.7689]
[1757012340677,1.31905,4276.2,4276.1,0.241]
[1757012340881,0.8982,4276.1,4276.0,3.2078]
[1757012341073,0.8982,4276.1,4276.0,3.7155]
[1757012341781,0.8982,4276.1,4276.0,3.9767]
[1757012344883,0.8982,4276.1,4276.0,3.4488]
[1757012346992,0.8982,4276.1,4276.0,3.2078]
[1757012347192,0.8982,4276.1,4276.0,3.4745]
[1757012347585,1.31906,4276.1,4276.0,3.7357]
[1757012347785,0.42082,4276.5,4276.4,0.5279]
[1757012347982,0.3886,4277.2,4276.5,0.42082]
[1757012348183,0.7636,4277.1,4277.0,0.5279]
[1757012348694,1.18436,4277.1,4277.0,0.5279]
[1757012349790,1.43576,4277.1,4277.0,0.5279]
[1757012349990,1.43576,4277.1,4277.0,0.2667]
[1757012350690,0.8982,4276.6,4276.0,0.0407009]
[1757012350891,0.6693,4276.0,4275.5,0.241]
[1757012351084,0.8982,4275.9,4275.8,0.2667]
[1757012351290,0.3886,4275.8,4275.7,3.2078]
[1757012351492,0.8982,4275.8,4275.7,3.2078]
[1757012351687,0.8982,4275.8,4275.7,3.4745]
[1757012352092,0.8982,4275.8,4275.7,3.7357]
[1757012352590,0.6468,4275.8,4275.7,3.7357]
[1757012352793,0.4007,4276.5,4275.8,0.2026]
[1757012352984,0.8982,4275.9,4275.8,0.5279]
[1757012353385,0.8982,4275.9,4275.7,3.2078]
[1757012353589,0.8982,4275.9,4274.7,0.42099]
[1757012353590,0.5096,4275.3,4275.2,3.2078]
[1757012353789,0.8982,4275.3,4275.2,3.2078]
[1757012353995,0.1597,4275.0,4274.7,3.2078]
[1757012354294,0.5096,4274.8,4274.7,3.2078]
[1757012354489,0.8982,4274.8,4274.7,3.2078]
[1757012354893,0.8982,4274.8,4274.7,3.4745]
[1757012356296,0.8982,4274.8,4274.7,3.2078]
[1757012359095,1.31919,4274.8,4274.7,3.2078]
[1757012359692,1.31919,4274.8,4274.7,3.7262]
[1757012359996,0.80959,4274.8,4274.7,3.9214]
[1757012360795,0.42099,4274.8,4274.7,3.9214]
[1757012360994,1.07959,4274.8,4274.7,3.7262]
[1757012361194,0.264,4275.0,4274.9,0.6944]
[1757012361195,0.1169,4275.0,4274.9,0.6944]
[1757012361398,0.42096,4275.2,4275.1,0.3287]
[1757012361593,1.34406,4275.2,4275.1,0.4914]
[1757012361793,0.82636,4275.2,4275.1,0.5697]
[1757012362897,1.07956,4275.2,4275.1,0.4914]
[1757012364388,1.34406,4275.2,4275.1,0.3662]
[1757012364588,0.42099,4274.8,4274.7,3.574]
[1757012364797,1.07959,4274.8,4274.7,3.574]
[1757012364998,1.07959,4274.8,4274.7,3.6992]
[1757012367103,0.4054,4274.8,4274.7,3.6992]
[1757012367305,0.42098,4274.9,4274.8,0.3287]
[1757012367904,0.82638,4274.9,4274.8,0.3287]
[1757012368107,0.82638,4274.9,4274.8,0.2504]
[1757012368904,1.07958,4274.9,4274.8,0.2504]
[1757012369500,1.34408,4274.9,4274.8,0.1252]
[1757012369805,1.34408,4274.9,4274.8,0.2504]
[1757012371105,1.07958,4274.9,4274.8,0.2504]
[1757012371404,0.82638,4274.9,4274.8,0.3287]
[1757012372600,0.42094,4275.3,4275.2,0.3287]
[1757012372796,0.42094,4275.3,4275.2,3.7775]
[1757012373200,1.07954,4275.3,4275.2,3.6992]
[1757012374700,1.34404,4275.3,4275.2,3.6992]
[1757012378600,0.82634,4275.3,4275.2,3.6992]
[1757012378805,0.42094,4275.3,4275.2,3.7775]
[1757012380010,0.4054,4275.6,4275.3,0.0783]
[1757012380211,0.0433,4275.8,4275.7,0.2504]
[1757012380508,0.6586,4275.8,4275.7,3.6992]
[1757012380701,0.9231,4275.8,4275.7,3.6992]
[1757012381802,0.6586,4275.8,4275.7,3.6992]
[1757012383314,0.9231,4275.8,4275.7,3.6992]
[1757012384312,0.6586,4275.8,4275.7,3.6992]
[1757012384511,0.4054,4275.8,4275.7,3.7775]
[1757012384809,0.0432,4276.3,4275.7,3.7775]
[1757012384810,0.4486,4276.3,4276.2,0.3287]
[1757012385011,0.9231,4276.3,4276.2,3.4582]
[1757012385210,0.9231,4276.3,4276.2,0.4914]
[1757012385419,0.9231,4276.3,4276.2,0.241]
[1757012385715,0.9231,4276.3,4276.2,0.4914]
[1757012386512,1.34394,4276.3,4276.2,0.4914]
[1757012388719,1.34394,4276.3,4276.2,0.241]
[1757012389715,0.6343,4275.3,4275.2,0.2086]
[1757012390012,0.6343,4275.3,4274.6,3.2078]
[1757012390013,0.8785,4274.9,4274.8,0.14501202]
[1757012390206,0.8785,4274.9,4274.7,0.241]
[1757012390207,0.3866,4274.8,4274.7,0.241]
[1757012390409,0.8785,4274.8,4274.7,0.241]
[1757012390719,0.3866,4274.7,4274.5,3.2078]
[1757012391016,0.8785,4274.6,4274.5,3.2078]
[1757012392720,0.8785,4274.6,4274.5,3.3121]
[1757012392916,0.8785,4274.6,4274.5,0.2086]
[1757012393319,0.8785,4274.6,4274.5,0.1043]
[1757012393515,0.3866,4274.9,4274.5,0.2086]
[1757012393715,0.1532,4274.5,4274.4,0.241]
[1757012394021,1.0317,4274.5,4274.4,3.2078]
[1757012395324,0.6451,4274.5,4274.3,3.2078]
[1757012395514,0.8785,4274.4,4274.3,3.2078]
[1757012398116,0.8785,4274.4,4274.3,3.3121]
[1757012398321,0.3866,4274.4,4274.3,3.4164]
[1757012398822,0.6343,4274.4,4274.3,3.4164]
[1757012399223,0.8785,4274.4,4274.3,3.4164]
[1757012399823,0.8785,4274.4,4274.3,0.1043]
[1757012400625,0.8785,4274.4,4274.3,3.4164]
[1757012401722,0.1532,4275.0,4274.4,0.42103]
[1757012401921,0.8785,4274.9,4274.8,0.1043]
[1757012402225,0.8785,4274.9,4274.8,0.241]
[1757012402935,0.8785,4274.9,4274.8,0.3453]
[1757012405027,0.8785,4274.9,4274.8,0.241]
[1757012405725,0.8785,4274.4,4274.3,3.3121]
[1757012406029,0.8785,4274.4,4274.3,3.2078]
[1757012408129,1.29953,4274.4,4274.3,3.2078]
[1757012408330,0.1532,4274.5,4273.5,32.269]
[1757012408331,0.80771,4273.6,4273.5,32.269]
[1757012408627,1.20862,4273.5,4273.4,0.2086]
[1757012408823,1.20862,4273.5,4273.4,0.4496]
[1757012409025,1.20862,4273.5,4273.4,0.98002219]
[1757012409421,1.45282,4273.5,4273.4,0.98002219]
[1757012409633,1.45282,4273.5,4273.4,0.77142219]
[1757012409932,1.45282,4273.5,4273.4,0.98002219]
[1757012411236,1.45282,4273.5,4273.4,0.87572219]
[1757012411432,1.45282,4273.5,4273.4,0.77142219]
[1757012413333,1.45282,4273.5,4273.4,0.53042219]
[1757012415440,0.8785,4272.9,4272.8,0.17786723]
[1757012417434,0.8785,4272.9,4272.8,0.43226723]
[1757012419340,0.8785,4272.9,4272.8,0.17786723]
[1757012422338,3.2078,4273.2,4272.8,5.58100722]
[1757012422531,3.7283,4273.8,4273.7,0.5461]
[1757012422732,4.1193,4273.8,4273.7,0.5461]
[1757012423244,4.54039,4273.8,4273.7,0.9281]
[1757012424031,3.2078,4273.8,4273.7,4.9281]
[1757012424230,0.0433,4274.0,4273.9,0.9281]
[1757012424435,0.0433,4274.0,4273.9,1.1691]
[1757012424637,0.0433,4274.0,4273.9,1.40308]
[1757012424837,0.6434,4274.7,4274.6,1.34911]
[1757012425030,0.391,4275.3,4275.0,0.80296]
[1757012425231,0.391,4275.3,4275.2,0.9281]
[1757012425451,0.391,4275.3,4275.1,0.241]
[1757012425452,0.391,4275.3,4274.6,3.5898]
[1757012425640,1.0612,4274.5,4274.4,0.5461]
[1757012425831,1.0612,4274.5,4274.4,0.274]
[1757012426240,0.6434,4274.5,4274.4,0.9281]
[1757012426430,0.391,4274.5,4274.4,0.9281]
[1757012426635,0.6434,4274.5,4274.4,0.9281]
[1757012426837,0.391,4274.9,4274.4,0.9281]
[1757012427142,0.81194,4275.4,4274.9,0.42098]
[1757012427441,3.2078,4275.7,4275.0,0.79597]
[1757012427640,4.2721,4275.7,4275.6,0.5461]
[1757012427836,0.1497,4276.0,4275.3,0.274]
[1757012427837,1.33243,4275.4,4275.3,0.274]
[1757012428343,0.81192,4275.6,4275.4,0.382]
[1757012428543,0.81192,4275.6,4275.1,3.2078]
[1757012428544,0.42092,4275.5,4275.1,3.2078]
[1757012428742,0.2681,4274.4,4274.3,0.274]
[1757012428945,0.9115,4274.4,4274.3,0.274]
[1757012429844,0.9115,4274.4,4274.3,0.96714]
[1757012430249,0.9115,4274.4,4274.3,1.59014]
[1757012430438,0.6434,4274.4,4274.3,1.59014]
[1757012430636,3.2078,4275.2,4274.3,1.59014]
[1757012430637,3.4602,4275.7,4275.6,0.274]
[1757012430840,3.8512,4275.7,4275.6,0.96701]
[1757012431044,0.391,4275.4,4275.2,0.66195]
[1757012431243,0.6434,4275.4,4275.3,0.96703]
[1757012431649,0.391,4275.4,4275.3,1.34903]
[1757012432642,0.391,4275.7,4275.6,0.5461]
[1757012432840,0.9115,4275.2,4275.1,3.4818]
[1757012433042,0.9115,4275.2,4275.1,3.7228]
[1757012434049,0.9115,4275.2,4275.1,3.4818]
[1757012434239,0.9115,4275.2,4275.1,3.4488]
[1757012434441,0.1497,4275.5,4274.6,0.42101]
[1757012434442,0.42096,4275.1,4274.6,0.42101]
[1757012434647,0.1497,4275.0,4274.6,1.34911]
[1757012434840,0.391,4274.9,4274.8,0.9281]
[1757012435343,0.6434,4275.2,4275.1,0.9281]
[1757012435644,0.6434,4275.2,4275.1,1.1691]
[1757012436244,0.1497,4275.5,4275.1,0.7871]
[1757012436546,0.391,4275.9,4275.8,0.9281]
[1757012437135,0.6434,4275.9,4275.8,0.5461]
[1757012437745,0.391,4276.4,4275.8,0.9281]
[1757012437948,0.42085,4276.2,4276.1,0.9281]
[1757012438150,0.42085,4276.2,4276.1,1.1691]
[1757012438342,0.81185,4276.2,4276.1,1.1691]
[1757012438649,0.391,4276.2,4276.1,1.1691]
[1757012438942,3.2078,4276.7,4276.1,1.1691]
[1757012438943,3.2078,4276.7,4276.6,0.5461]
[1757012439149,4.1193,4276.7,4276.6,0.241]
[1757012439742,0.391,4276.7,4276.6,0.7871]
[1757012439943,0.391,4277.1,4276.9,0.382]
[1757012440243,0.391,4277.3,4277.2,0.9281]
[1757012440440,0.6434,4277.3,4277.2,0.9281]
[1757012441348,0.391,4277.3,4277.2,0.9281]
[1757012441746,0.391,4277.9,4277.3,0.382]
[1757012441942,0.42066,4278.2,4277.6,3.2078]
[1757012442144,0.42067,4278.1,4277.7,0.4207]
[1757012442442,0.391,4278.0,4277.9,0.382]
[1757012442845,0.42064,4278.4,4277.9,0.382]
[1757012443042,0.391,4278.3,4278.2,3.5898]
[1757012443244,0.391,4278.3,4278.2,3.4488]
[1757012443851,0.391,4278.5,4278.2,3.4488]
[1757012444050,0.391,4278.5,4278.3,0.382]
[1757012444246,0.391,4278.3,4278.2,3.2078]
[1757012444554,0.391,4278.3,4278.2,0.241]
[1757012444752,0.9115,4278.3,4278.2,0.241]
[1757012445647,0.5205,4278.3,4277.7,3.2078]
[1757012445855,1.33219,4277.8,4277.7,3.4488]
[1757012446355,1.33219,4277.8,4277.7,3.2078]
[1757012446559,1.33219,4277.8,4275.9,1.0522]
[1757012446560,0.391,4277.4,4277.0,3.2078]
[1757012446856,0.81176,4277.1,4277.0,3.2078]
[1757012447047,0.4208,4276.7,4276.2,3.2078]
[1757012447247,0.1497,4277.0,4276.3,0.241]
[1757012447248,0.391,4276.6,4276.3,0.241]
[1757012447449,0.81183,4276.5,4276.3,0.623]
[1757012448352,0.3781,4276.7,4276.5,0.3798]
[1757012448559,0.3781,4276.7,4276.6,0.241]
[1757012448758,0.3781,4276.7,4276.6,0.6208]
[1757012449154,0.3781,4276.7,4276.6,0.241]
[1757012449751,0.42079,4276.8,4276.6,0.7441]
[1757012449956,0.6341,4277.4,4277.3,0.2544]
[1757012450253,0.6341,4277.4,4277.3,0.8829]
[1757012450463,0.1497,4277.5,4277.3,0.8829]
[1757012450464,0.3781,4277.8,4277.3,4.0907]
[1757012450649,0.3781,4277.7,4277.6,0.5031]
[1757012450850,0.6341,4277.7,4277.6,0.7441]
[1757012451048,0.6341,4277.7,4277.6,1.1239]
[1757012451450,0.4057,4278.0,4277.9,0.2544]
[1757012451651,0.3781,4278.0,4277.9,0.3798]
[1757012451854,0.3781,4278.0,4277.9,0.6208]
[1757012452461,0.5297,4278.0,4277.9,0.241]
[1757012452761,0.79878,4277.9,4277.8,3.2078]
[1757012453159,0.3781,4277.4,4277.3,3.2078]
[1757012453362,0.3781,4277.4,4277.3,3.4488]
[1757012453660,0.3781,4277.4,4277.3,3.8286]
[1757012454365,0.42069,4277.9,4277.5,0.42072]
[1757012454664,0.3781,4277.7,4277.6,0.241]
[1757012456659,0.3781,4278.3,4277.7,0.3798]
[1757012456865,3.2078,4278.9,4278.7,0.42061]
[1757012456866,0.3781,4278.8,4278.7,0.42061]
[1757012457171,0.3781,4278.8,4278.7,0.24]
[1757012458759,0.3781,4278.8,4278.7,0.6198]
[1757012458958,0.1516,4279.0,4278.7,0.6198]
[1757012459160,0.3781,4278.9,4278.7,0.6198]
[1757012459466,0.3781,4278.9,4278.8,0.4206]
[1757012459665,0.3781,4278.9,4278.8,0.8004]
[1757012460062,0.3781,4279.2,4278.9,0.42059]
[1757012460258,0.3781,4279.4,4279.0,4.24817]
[1757012460564,0.3781,4279.8,4279.3,0.80034]
[1757012460865,0.3781,4279.9,4279.7,0.4205]
[1757012461064,0.3781,4279.9,4279.8,0.24]
[1757012461256,0.3781,4280.4,4279.8,0.6198]
[1757012461456,0.42048,4280.0,4279.6,3.2078]
[1757012461663,0.57208,4280.0,4279.7,0.24]
[1757012461857,0.3781,4279.7,4279.6,3.2078]
[1757012462267,0.3781,4279.7,4279.6,3.4478]
[1757012463967,0.3781,4279.7,4279.6,3.8276]
[1757012464564,0.1516,4280.0,4279.6,4.24811]
[1757012464767,0.3781,4279.9,4279.6,3.4478]
[1757012465160,0.3781,4279.9,4279.7,0.3798]
[1757012465763,0.79859,4279.9,4279.7,0.3798]
[1757012465964,0.42051,4279.8,4279.6,3.2078]
[1757012466167,0.3781,4279.7,4279.6,3.2078]
[1757012466366,0.3781,4279.7,4279.6,3.4478]
[1757012466764,0.3781,4279.7,4279.6,3.8276]
[1757012467374,0.6341,4279.7,4279.6,4.3307]
[1757012468572,0.6341,4279.7,4279.6,4.51122]
[1757012468774,0.6341,4279.7,4279.6,4.75122]
[1757012469072,0.6341,4279.7,4279.6,4.3307]
[1757012469468,3.3594,4280.5,4279.7,0.3798]
[1757012469670,0.3781,4280.4,4279.9,0.42049]
[1757012469865,3.3594,4280.5,4280.0,0.2544]
[1757012469866,0.8834,4280.1,4280.0,0.2544]
[1757012470173,0.6341,4279.7,4279.6,3.7109]
[1757012470374,0.8834,4279.7,4279.6,3.9509]
[1757012470773,0.6341,4279.7,4279.6,4.3307]
[1757012471169,0.6341,4279.7,4279.6,3.9509]
[1757012471570,0.6341,4279.7,4279.6,4.3307]
[1757012471967,0.3781,4279.9,4279.7,0.80031]
[1757012472268,0.3781,4279.9,4279.8,1.1229]
[1757012472473,0.3781,4279.9,4279.8,1.5434]
[1757012472975,0.3781,4280.4,4279.8,1.5434]
[1757012473169,0.3781,4280.4,4279.8,1.1229]
[1757012473366,0.1516,4280.5,4279.8,1.1229]
[1757012473569,0.256,4279.9,4279.8,1.1229]
[1757012473868,0.6341,4279.9,4279.8,1.1229]
[1757012474070,0.1516,4280.5,4279.9,0.42049]
[1757012474268,0.256,4280.1,4280.0,1.1229]
[1757012474466,0.6341,4280.1,4280.0,1.1229]
[1757012474673,0.3781,4280.4,4280.1,0.3798]
[1757012474876,0.3781,4280.4,4280.3,0.8829]
[1757012475580,0.3781,4280.9,4280.3,0.8829]
[1757012475773,0.3781,4280.9,4280.7,0.2544]
[1757012475774,0.8834,4280.8,4280.7,0.2544]
[1757012475974,0.8834,4280.8,4280.7,0.7431]
[1757012478777,0.8834,4280.8,4280.7,1.1233]
[1757012479280,0.2509,4280.8,4280.7,0.24]
[1757012479581,0.1557,4281.0,4280.4,3.4723]
[1757012479582,0.6462,4280.5,4280.4,3.4723]
[1757012479882,0.6462,4281.0,4280.9,0.2645]
[1757012480082,0.6462,4281.0,4280.9,0.5045]
[1757012480280,0.6462,4281.0,4280.9,0.763]
[1757012480479,1.037,4281.0,4280.9,1.1432]
[1757012480779,0.3908,4280.4,4279.8,0.3802]
[1757012480980,0.6417,4280.0,4279.9,1.1432]
[1757012481378,0.6417,4280.0,4279.9,0.9032]
[1757012481586,1.037,4280.0,4279.9,0.523]
[1757012481885,1.037,4280.0,4279.8,0.24]
[1757012483983,0.3908,4279.9,4279.8,0.24]
[1757012484182,0.6417,4279.9,4279.8,0.5045]
[1757012484379,0.8813,4279.9,4279.8,0.763]
[1757012485480,0.4905,4278.4,4278.3,0.2645]
[1757012485978,0.4905,4278.4,4277.9,3.2078]
[1757012485979,0.3908,4278.3,4278.1,0.24]
[1757012486185,1.037,4278.0,4277.9,3.2078]
[1757012486486,0.6417,4278.0,4277.9,4.351]
[1757012486678,0.1167,4278.2,4278.1,0.9032]
[1757012487980,0.7584,4278.2,4278.1,0.523]
[1757012488178,4.2058,4278.2,4277.1,0.3802]
[1757012488683,3.7153,4278.2,4277.2,0.241]
[1757012488881,0.3908,4277.4,4277.2,0.241]
[1757012489074,0.1557,4277.5,4277.2,0.241]
[1757012489278,0.1557,4277.5,4276.8,3.588]
[1757012489279,0.3908,4277.4,4276.8,3.588]
[1757012489477,0.1557,4277.5,4276.8,0.241]
[1757012489684,0.3908,4276.9,4276.8,0.241]
[1757012490685,0.5465,4276.5,4276.4,32.244]
[1757012490886,0.5465,4277.0,4276.4,32.8652]
[1757012491684,0.3908,4276.4,4276.3,3.2078]
[1757012491884,0.3908,4276.4,4276.3,3.4488]
[1757012492182,0.3908,4276.4,4276.3,3.829]
[1757012492483,0.3908,4276.4,4276.2,0.241]
[1757012492686,0.3908,4276.4,4276.0,0.241]
[1757012492891,0.3908,4275.9,4275.8,3.2078]
[1757012493081,0.3908,4275.9,4275.7,0.241]
[1757012493280,0.1557,4276.0,4275.7,0.241]
[1757012493480,0.3908,4275.9,4275.7,0.6212]
[1757012493787,0.3908,4275.9,4275.7,0.241]
[1757012493981,0.3908,4275.9,4275.7,0.6212]
[1757012494287,0.3908,4275.9,4275.7,0.241]
[1757012494488,0.1557,4276.0,4275.7,0.241]
[1757012494884,0.3908,4275.9,4275.7,0.241]
[1757012495088,0.1557,4276.0,4275.7,0.241]
[1757012495484,0.3908,4275.9,4275.7,0.241]
[1757012495685,0.3908,4275.9,4275.3,3.2078]
[1757012495981,0.3908,4275.9,4275.5,0.241]
[1757012496587,0.1557,4276.0,4275.5,0.241]
[1757012496890,0.1557,4276.0,4275.5,0.66192]
[1757012496891,0.3908,4275.9,4275.5,0.66192]
[1757012497281,0.8813,4275.9,4275.8,0.2645]
[1757012499784,0.3908,4276.4,4276.3,0.9032]
[1757012500086,3.8495,4276.7,4276.6,0.523]
[1757012500285,3.8495,4276.7,4276.2,0.241]
[1757012500286,4.0891,4276.7,4276.2,0.241]
[1757012500587,0.4905,4276.3,4275.5,0.93512]
[1757012500791,0.8813,4275.9,4275.5,0.3802]
[1757012500988,0.8813,4275.9,4275.8,3.7133]
[1757012501292,0.3908,4275.8,4275.6,0.241]
[1757012501489,0.1557,4276.0,4275.6,0.241]
[1757012501490,0.4905,4275.7,4275.6,0.5055]
[1757012501691,0.8813,4275.7,4275.6,0.5055]
[1757012501990,0.8813,4275.7,4275.6,0.241]
[1757012502195,0.8813,4275.7,4275.1,3.588]
[1757012502381,0.3908,4275.6,4275.2,0.241]
[1757012502587,1.037,4275.5,4275.4,0.2645]
[1757012502794,1.037,4275.5,4275.4,0.523]
[1757012502998,1.037,4275.5,4275.4,0.9032]
[1757012503797,1.037,4275.5,4275.4,0.523]
[1757012504695,0.3908,4275.5,4275.4,0.523]
[1757012504996,0.7584,4275.9,4275.8,0.9032]
[1757012505403,0.1167,4275.9,4275.8,0.9032]
[1757012506194,0.5075,4275.9,4275.8,0.9032]
[1757012506799,0.1167,4275.9,4275.8,1.32409]
[1757012507202,0.1167,4275.9,4275.8,0.9032]
[1757012507401,0.1167,4275.9,4275.8,1.32409]
[1757012507599,0.1167,4275.9,4275.8,5.55795999]
[1757012507794,0.3908,4276.7,4276.6,0.8168]
[1757012508007,0.3908,4276.7,4276.6,1.0578]
[1757012508603,0.6473,4276.9,4276.8,0.4891]
[1757012509000,0.9017,4276.9,4276.8,0.4891]
[1757012509199,0.9017,4276.4,4276.3,0.241]
[1757012509498,0.148,4276.0,4275.7,3.2078]
[1757012509700,0.9017,4275.8,4275.7,3.6969]
[1757012509897,0.9017,4275.8,4275.7,3.4488]
[1757012510901,0.9017,4275.8,4275.7,0.241]
[1757012511096,0.5147,4274.8,4274.1,0.74875]
[1757012511302,0.6473,4274.3,4274.2,0.7301]
[1757012512200,0.387,4274.3,4274.2,1.0578]
[1757012512605,0.535,4274.5,4274.3,0.3277]
[1757012512902,0.7953,4274.5,4274.4,0.4891]
[1757012513104,0.6627,4274.5,4274.0,3.2078]
[1757012513406,0.7953,4274.0,4273.9,0.2518]
[1757012513597,0.7953,4274.0,4273.9,0.4928]
[1757012513998,0.7953,4274.0,4273.9,0.7301]
[1757012514707,0.7953,4274.0,4273.9,0.4891]
[1757012515004,0.7953,4274.0,4273.9,1.0578]
[1757012515204,0.387,4274.0,4273.9,1.0578]
[1757012515802,0.387,4273.9,4273.8,0.2373]
[1757012516002,0.387,4273.9,4273.8,0.7301]
[1757012516201,0.9017,4273.9,4273.8,0.241]
[1757012516407,1.0497,4273.5,4273.4,3.4596]
[1757012516602,1.0497,4273.5,4273.4,3.9379]
[1757012516907,0.387,4273.5,4273.4,4.2656]
[1757012517507,0.6473,4273.5,4273.4,4.2656]
[1757012517809,1.0497,4273.5,4273.4,3.7006]
[1757012518001,1.0497,4273.5,4273.4,3.4596]
[1757012518201,1.0497,4273.5,4273.4,3.7006]
[1757012518406,1.0497,4273.5,4273.4,3.2078]
[1757012518606,1.0497,4273.5,4273.4,3.4488]
[1757012518810,1.0497,4273.5,4273.4,3.9379]
[1757012519110,0.6473,4273.9,4273.8,0.4891]
[1757012519306,0.387,4273.9,4273.8,1.0578]
[1757012521207,0.9017,4273.9,4273.8,0.4928]
[1757012521404,0.4083,4273.5,4273.4,3.6969]
[1757012521605,0.6473,4273.5,4273.4,4.2656]
[1757012521803,1.0497,4273.5,4273.4,3.6969]
[1757012522004,1.0497,4273.5,4273.4,3.9379]
[1757012522210,0.7953,4273.5,4273.4,3.9379]
[1757012522410,0.387,4274.0,4273.9,0.8168]
[1757012522609,0.387,4274.0,4273.9,4.2656]
[1757012523322,0.148,4274.5,4274.3,0.42104]
[1757012523525,0.387,4274.5,4274.4,0.8168]
[1757012524020,0.387,4274.4,4273.9,3.2078]
[1757012524223,1.0497,4274.0,4273.9,0.2518]
[1757012524414,1.0497,4274.0,4273.7,0.241]
[1757012525122,0.6627,4274.0,4273.9,3.4596]
[1757012525319,0.6627,4274.0,4273.9,3.6969]
[1757012525525,3.3558,4275.0,4274.4,1.23783]
[1757012525526,0.148,4275.0,4274.4,1.23783]
[1757012525726,0.6473,4274.9,4274.8,0.2518]
[1757012525920,0.9017,4274.9,4274.8,0.2518]
[1757012526421,0.9017,4274.9,4274.4,3.2078]
[1757012526620,1.0497,4274.5,4274.4,3.2078]
[1757012527118,1.0497,4274.5,4274.2,0.241]
[1757012527720,1.0497,4274.5,4273.8,0.241]
[1757012527721,0.9017,4273.9,4273.8,0.241]
[1757012527930,0.6473,4273.0,4272.9,3.4596]
[1757012528115,0.7953,4273.0,4272.9,3.9379]
[1757012529617,0.7953,4273.0,4272.9,4.2656]
[1757012529819,0.387,4273.4,4272.9,4.68678]
[1757012530125,0.6473,4273.4,4273.3,0.4891]
[1757012530325,0.6473,4273.4,4273.3,0.7301]
[1757012530514,0.9017,4273.4,4273.3,0.241]
[1757012531123,0.6473,4273.4,4273.3,1.0578]
[1757012531323,0.387,4273.4,4273.3,1.0578]
[1757012531627,0.2603,4273.9,4273.8,0.4891]
[1757012531826,3.2078,4274.4,4274.2,0.3277]
[1757012532029,3.5948,4274.4,4274.3,0.241]
[1757012532726,0.387,4274.3,4274.2,0.241]
[1757012532924,0.148,4274.0,4273.9,0.241]
[1757012533125,0.535,4274.0,4273.9,0.241]
[1757012534026,0.535,4274.0,4272.5,0.3764]
[1757012534027,0.23398,4273.9,4272.5,0.3764]
[1757012534226,3.2078,4272.6,4272.0,24.3141]
[1757012534425,0.116,4272.9,4272.0,24.3141]
[1757012534625,0.243,4273.0,4272.0,23.9377]
[1757012534825,0.243,4273.0,4272.1,0.3764]
[1757012535020,32.287,4273.9,4272.1,0.3764]
[1757012535221,1.0473745,4273.8,4272.1,0.3764]
[1757012535428,0.57034449,4273.7,4272.1,0.3764]
[1757012535624,3.2078,4272.3,4272.0,23.9377]
[1757012535830,3.4508,4272.3,4272.0,23.7954]
[1757012536032,4.0,4272.2,4271.0,0.0042269]
[1757012536233,3.2078,4271.1,4271.0,0.3806269]
[1757012536531,3.2078,4271.1,4271.0,0.9442969]
[1757012536826,3.2078,4271.6,4271.2,0.3764]
[1757012537030,3.2078,4271.6,4271.5,8.5187]
[1757012537326,0.42136,4271.1,4271.0,0.1465269]
[1757012537526,0.42134,4271.3,4271.0,8.5229269]
[1757012537729,0.42136,4271.2,4271.0,8.6299269]
[1757012537918,0.42133,4271.4,4271.1,8.4834]
[1757012538124,0.899,4271.3,4270.0,0.04075221]
[1757012538320,3.2078,4270.3,4270.2,0.4834]
[1757012538523,0.42138,4271.0,4270.6,0.4834]
[1757012538727,0.42135,4271.2,4271.1,0.4834]
[1757012539323,3.2078,4271.5,4271.2,0.4834]
[1757012539530,3.2078,4271.5,4271.0,0.1906]
[1757012539726,3.2078,4271.5,4271.4,8.2604]
[1757012541031,3.2078,4273.3,4272.1,0.4834]
[1757012541231,3.4538,4273.3,4272.3,3.6912]
[1757012541431,0.0216,4273.0,4272.2,3.2078]
[1757012541628,0.0216,4273.0,4272.0,0.1906]
[1757012541930,0.0216,4272.8,4271.8,3.6912]
[1757012542134,0.2676,4272.7,4271.8,3.6912]
[1757012542534,0.50167,4272.7,4271.8,3.6912]
[1757012542837,0.2676,4272.7,4271.8,3.6912]
[1757012543733,0.0216,4272.7,4271.8,3.2078]
[1757012543937,0.246,4272.6,4272.0,0.1906]
[1757012544136,0.246,4272.8,4272.1,0.4834]
[1757012544336,0.0216,4272.7,4272.1,0.4834]
[1757012544842,0.246,4272.8,4272.1,0.4834]
[1757012545240,3.2078,4273.3,4272.5,0.42121]
[1757012545445,3.2078,4273.3,4273.0,0.1906]
[1757012545739,0.246,4273.6,4273.0,0.1906]
[1757012545740,0.246,4273.6,4273.0,0.674]
[1757012546238,0.42116,4273.1,4273.0,0.674]
[1757012546543,0.42116,4273.1,4273.0,3.8818]
[1757012546738,0.42115,4273.2,4273.0,3.3984]
[1757012546933,0.0216,4274.7,4273.1,0.246]
[1757012547139,0.42105,4274.3,4274.1,0.4834]
[1757012547332,0.42102,4274.6,4274.1,3.2078]
[1757012547538,3.4538,4274.8,4274.1,3.2078]
[1757012547539,0.0216,4274.5,4274.1,3.2078]